Workbook

Sheet Sheet1
O1: WT averaged fluorescence | AC1: TAC-averaged signal
B2: Raw Fluorescence data | C2: 1 | D2: 2 | E2: 3 | F2: 4 | G2: 5 | H2: 6 | I2: 7 | J2: 8 | K2: 9 | L2: 10 | M2: 11 | N2: 12 | O2: =AVERAGE(C3:H3) -> 536.1666667 | P2: Background-normalized incorporation data | Q2: 1 | R2: 2 | S2: 3 | T2: 4 | U2: 5 | V2: 6 | W2: 7 | X2: 8 | Y2: 9 | Z2: 10 | AA2: 11 | AB2: 12 | AC2: =AVERAGE(AE4:AJ4) -> 65757.49093 | AD2: OD-normalized incorporation data | AE2: 1 | AF2: 2 | AG2: 3 | AH2: 4 | AI2: 5 | AJ2: 6 | AK2: 7 | AL2: 8 | AM2: 9 | AN2: 10 | AO2: 11 | AP2: 12 | AR2: Final data | AS2: 1 | AT2: 2 | AU2: 3 | AV2: 4 | AW2: 5 | AX2: 6 | AY2: 7 | AZ2: 8 | BA2: 9 | BB2: 10 | BC2: 11 | BD2: 12
B3: A | C3: 546 | D3: 633 | E3: 568 | F3: 518 | G3: 519 | H3: 433 | I3: 1858 | J3: 1872 | K3: 1730 | L3: 1959 | M3: 1991 | N3: 1867 | O3: Read 1:488,530 | P3: A | Q3: =C3-0.9*$O$2 -> 63.45 | R3: 150.45 | S3: 85.45 | T3: 35.45 | U3: 36.45 | V3: -49.55 | W3: 1375.45 | X3: 1389.45 | Y3: 1247.45 | Z3: 1476.45 | AA3: 1508.45 | AB3: 1384.45 | AD3: A | AE3: =Q3/Q13 -> 755.3571429 | AF3: =R3/R13 -> 1791.071429 | AG3: 1005.294118 | AH3: 322.2727273 | AI3: 340.6542056 | AJ3: -481.0679612 | AK3: 16980.8642 | AL3: 17813.46154 | AM3: 15593.125 | AN3: 15541.57895 | AO3: 16396.19565 | AP3: 15382.77778 | AR3: A | AS3: =AE3/$AC$2 -> 0.01148701284 | AT3: =AF3/$AC$2 -> 0.02723752691 | AU3: 0.01528790262 | AV3: 0.004900927981 | AW3: 0.005180462344 | AX3: -0.007315789492 | AY3: 0.2582346734 | AZ3: 0.2708963083 | BA3: 0.2371307782 | BB3: 0.2363468972 | BC3: 0.2493433892 | BD3: 0.2339319454
B4: B | C4: 7693 | D4: 7714 | E4: 7822 | F4: 6377 | G4: 7152 | H4: 7875 | I4: 841 | J4: 843 | K4: 887 | L4: 540 | M4: 567 | N4: 560 | O4: Read 1:488,530 | P4: B | Q4: 7210.45 | R4: 7231.45 | S4: 7339.45 | T4: 5894.45 | U4: 6669.45 | V4: 7392.45 | W4: 358.45 | X4: 360.45 | Y4: 404.45 | Z4: 57.45 | AA4: 84.45 | AB4: 77.45 | AD4: B | AE4: =Q4/Q14 -> 67387.38318 | AF4: =R4/R14 -> 66957.87037 | AG4: =S4/S14 -> 62730.34188 | AH4: =T4/T14 -> 60147.44898 | AI4: =U4/U14 -> 64129.32692 | AJ4: =V4/V14 -> 73192.57426 | AK4: =W4/W14 -> 3350 | AL4: =X4/X14 -> 3276.818182 | AM4: =Y4/Y14 -> 3516.956522 | AN4: =Z4/Z14 -> 541.9811321 | AO4: =AA4/AA14 -> 812.0192308 | AP4: =AB4/AB14 -> 766.8316832 | AR4: B | AS4: =AE4/$AC$2 -> 1.024786412 | AT4: =AF4/$AC$2 -> 1.018254642 | AU4: =AG4/$AC$2 -> 0.953964955 | AV4: =AH4/$AC$2 -> 0.9146858879 | AW4: =AI4/$AC$2 -> 0.9752398702 | AX4: =AJ4/$AC$2 -> 1.113068233 | AY4: =AK4/$AC$2 -> 0.05094476618 | AZ4: =AL4/$AC$2 -> 0.04983186152 | BA4: =AM4/$AC$2 -> 0.0534837396 | BB4: =AN4/$AC$2 -> 0.008242120014 | BC4: =AO4/$AC$2 -> 0.01234869548 | BD4: =AP4/$AC$2 -> 0.01166151069
B5: C | C5: 5898 | D5: 5926 | E5: 6326 | F5: 704 | G5: 677 | H5: 758 | I5: 1395 | J5: 1366 | K5: 1486 | L5: 664 | M5: 642 | N5: 724 | O5: Read 1:488,530 | P5: C | Q5: 5415.45 | R5: 5443.45 | S5: 5843.45 | T5: 221.45 | U5: 194.45 | V5: 275.45 | W5: 912.45 | X5: 883.45 | Y5: 1003.45 | Z5: 181.45 | AA5: 159.45 | AB5: 241.45 | AD5: C | AE5: 58230.64516 | AF5: 49939.90826 | AG5: 52643.69369 | AH5: 2171.078431 | AI5: 1984.183673 | AJ5: 2899.473684 | AK5: 11127.43902 | AL5: 11043.125 | AM5: 12701.89873 | AN5: 1814.5 | AO5: 1752.197802 | AP5: 2541.578947 | AR5: C | AS5: 0.8855362992 | AT5: 0.7594558057 | AU5: 0.8005733331 | AV5: 0.0330164427 | AW5: 0.03017426069 | AX5: 0.04409343549 | AY5: 0.1692193371 | AZ5: 0.1679371406 | BA5: 0.1931627645 | BB5: 0.0275938144 | BC5: 0.0266463604 | BD5: 0.03865078961
B6: D | C6: 6152 | D6: 6263 | E6: 6419 | F6: 937 | G6: 913 | H6: 1032 | I6: 646 | J6: 628 | K6: 608 | L6: 539 | M6: 597 | N6: 720 | O6: Read 1:488,530 | P6: D | Q6: 5669.45 | R6: 5780.45 | S6: 5936.45 | T6: 454.45 | U6: 430.45 | V6: 549.45 | W6: 163.45 | X6: 145.45 | Y6: 125.45 | Z6: 56.45 | AA6: 114.45 | AB6: 237.45 | AD6: D | AE6: 27928.32512 | AF6: 28060.43689 | AG6: 28678.50242 | AH6: 4783.684211 | AI6: 4628.494624 | AJ6: 6105 | AK6: 1969.277108 | AL6: 1598.351648 | AM6: 1441.954023 | AN6: 424.4360902 | AO6: 1244.021739 | AP6: 2638.333333 | AR6: D | AS6: 0.4247170129 | AT6: 0.4267260885 | AU6: 0.4361252537 | AV6: 0.07274736525 | AW6: 0.07038733623 | AX6: 0.09284113359 | AY6: 0.0299475707 | AZ6: 0.02430676149 | BA6: 0.02192836136 | BB6: 0.00645456638 | BC6: 0.01891832735 | BD6: 0.04012217157
B7: E | C7: 4411 | D7: 4617 | E7: 4520 | F7: 780 | G7: 785 | H7: 785 | I7: 744 | J7: 883 | K7: 894 | L7: 671 | M7: 691 | N7: 674 | O7: Read 1:488,530 | P7: E | Q7: 3928.45 | R7: 4134.45 | S7: 4037.45 | T7: 297.45 | U7: 302.45 | V7: 302.45 | W7: 261.45 | X7: 400.45 | Y7: 411.45 | Z7: 188.45 | AA7: 208.45 | AB7: 191.45 | AD7: E | AE7: 48499.38272 | AF7: 52334.81013 | AG7: 52434.41558 | AH7: 3198.387097 | AI7: 3252.150538 | AJ7: 3516.860465 | AK7: 3395.454545 | AL7: 5133.974359 | AM7: 5143.125 | AN7: 2141.477273 | AO7: 2127.040816 | AP7: 2103.846154 | AR7: E | AS7: 0.7375491678 | AT7: 0.7958760194 | AU7: 0.7973907587 | AV7: 0.04863912919 | AW7: 0.04945673096 | AX7: 0.05348227883 | AY7: 0.05163601131 | AZ7: 0.07807436516 | BA7: 0.07821352255 | BB7: 0.03256628625 | BC7: 0.03234674539 | BD7: 0.03199401504
B8: F | C8: 759 | D8: 808 | E8: 813 | F8: 675 | G8: 672 | H8: 667 | I8: 767 | J8: 801 | K8: 767 | L8: 622 | M8: 684 | N8: 685 | O8: Read 1:488,530 | P8: F | Q8: 276.45 | R8: 325.45 | S8: 330.45 | T8: 192.45 | U8: 189.45 | V8: 184.45 | W8: 284.45 | X8: 318.45 | Y8: 284.45 | Z8: 139.45 | AA8: 201.45 | AB8: 202.45 | AD8: F | AE8: 3037.912088 | AF8: 3740.804598 | AG8: 3755.113636 | AH8: 2004.6875 | AI8: 2015.425532 | AJ8: 1882.142857 | AK8: 25859.09091 | AL8: 9951.5625 | AM8: 7901.388889 | AN8: 7339.473684 | AO8: 15496.15385 | AP8: 15573.07692 | AR8: F | AS8: 0.04619872268 | AT8: 0.05688788524 | AU8: 0.05710548841 | AV8: 0.03048607043 | AW8: 0.0306493679 | AX8: 0.0286224859 | AY8: 0.3932493552 | AZ8: 0.1513373208 | BA8: 0.1201595252 | BB8: 0.1116142599 | BC8: 0.2356560998 | BD8: 0.2368258993
B9: G | C9: 4207 | D9: 3897 | E9: 4291 | F9: 843 | G9: 735 | H9: 810 | I9: 1772 | J9: 1728 | K9: 1973 | L9: 911 | M9: 877 | N9: 940 | O9: Read 1:488,530 | P9: G | Q9: 3724.45 | R9: 3414.45 | S9: 3808.45 | T9: 360.45 | U9: 252.45 | V9: 327.45 | W9: 1289.45 | X9: 1245.45 | Y9: 1490.45 | Z9: 428.45 | AA9: 394.45 | AB9: 457.45 | AD9: G | AE9: 30528.27869 | AF9: 29183.33333 | AG9: 31216.80328 | AH9: 3499.514563 | AI9: 2450.970874 | AJ9: 3179.126214 | AK9: 10315.6 | AL9: 10378.75 | AM9: 11465 | AN9: 4327.777778 | AO9: 4241.397849 | AP9: 4972.282609 | AR9: G | AS9: 0.4642555282 | AT9: 0.4438024158 | AU9: 0.4747261922 | AV9: 0.05321849288 | AW9: 0.03727287704 | AX9: 0.04834622137 | AY9: 0.1568733821 | AZ9: 0.1578337289 | BA9: 0.1743527595 | BB9: 0.065814217 | BC9: 0.0645006035 | BD9: 0.07561545519
B10: H | C10: 4786 | D10: 4455 | E10: 4426 | F10: 740 | G10: 706 | H10: 711 | I10: 492 | J10: 435 | K10: 442 | L10: 463 | M10: 402 | N10: 415 | O10: Read 1:488,530 | P10: H | Q10: 4303.45 | R10: 3972.45 | S10: 3943.45 | T10: 257.45 | U10: 223.45 | V10: 228.45 | W10: 9.45 | X10: -47.55 | Y10: -40.55 | Z10: -19.55 | AA10: -80.55 | AB10: -67.55 | AD10: H | AE10: 47290.65934 | AF10: 45660.34483 | AG10: 41510 | AH10: 2681.770833 | AI10: 2377.12766 | AJ10: 2284.5 | AR10: H | AS10: 0.7191676366 | AT10: 0.6943748032 | AU10: 0.6312588788 | AV10: 0.0407827427 | AW10: 0.03614991427 | AX10: 0.03474128906
B12: Raw OD data | C12: 1 | D12: 2 | E12: 3 | F12: 4 | G12: 5 | H12: 6 | I12: 7 | J12: 8 | K12: 9 | L12: 10 | M12: 11 | N12: 12 | P12: Normalized OD data | Q12: 1 | R12: 2 | S12: 3 | T12: 4 | U12: 5 | V12: 6 | W12: 7 | X12: 8 | Y12: 9 | Z12: 10 | AA12: 11 | AB12: 12 | AT12: Averages | AX12: Std. Deviation
B13: A | C13: 0.124 | D13: 0.124 | E13: 0.125 | F13: 0.15 | G13: 0.147 | H13: 0.143 | I13: 0.121 | J13: 0.118 | K13: 0.12 | L13: 0.135 | M13: 0.132 | N13: 0.13 | O13: Read 2:600 | P13: A | Q13: =C13-0.04 -> 0.084 | R13: =D13-0.04 -> 0.084 | S13: 0.085 | T13: 0.11 | U13: 0.107 | V13: 0.103 | W13: 0.081 | X13: 0.078 | Y13: 0.08 | Z13: 0.095 | AA13: 0.092 | AB13: 0.09 | AT13: + nsAA | AU13: - nsAA | AX13: + nsAA | AY13: - nsAA
B14: B | C14: 0.147 | D14: 0.148 | E14: 0.157 | F14: 0.138 | G14: 0.144 | H14: 0.141 | I14: 0.147 | J14: 0.15 | K14: 0.155 | L14: 0.146 | M14: 0.144 | N14: 0.141 | O14: Read 2:600 | P14: B | Q14: =C14-0.04 -> 0.107 | R14: =D14-0.04 -> 0.108 | S14: =E14-0.04 -> 0.117 | T14: =F14-0.04 -> 0.098 | U14: =G14-0.04 -> 0.104 | V14: =H14-0.04 -> 0.101 | W14: =I14-0.04 -> 0.107 | X14: =J14-0.04 -> 0.11 | Y14: =K14-0.04 -> 0.115 | Z14: =L14-0.04 -> 0.106 | AA14: =M14-0.04 -> 0.104 | AB14: =N14-0.04 -> 0.101 | AS14: WT Py79 | AT14: =AVERAGE(AS3:AU3) -> 0.01800414746 | AU14: =AVERAGE(AV3:AX3) -> 0.0009218669444 | AW14: WT Py79 | AX14: =_xlfn.STDEV.P(AS3:AU3) -> 0.006710845095 | AY14: =_xlfn.STDEV.P(AV3:AX3) -> 0.005826020514
B15: C | C15: 0.133 | D15: 0.149 | E15: 0.151 | F15: 0.142 | G15: 0.138 | H15: 0.135 | I15: 0.122 | J15: 0.12 | K15: 0.119 | L15: 0.14 | M15: 0.131 | N15: 0.135 | O15: Read 2:600 | P15: C | Q15: 0.093 | R15: 0.109 | S15: 0.111 | T15: 0.102 | U15: 0.098 | V15: 0.095 | W15: 0.082 | X15: 0.08 | Y15: 0.079 | Z15: 0.1 | AA15: 0.091 | AB15: 0.095 | AS15: TAC + ctrl | AT15: =AVERAGE(AS4:AU4) -> 0.9990020028 | AU15: =AVERAGE(AV4:AX4) -> 1.000997997 | AW15: TAC + ctrl | AX15: 0.03195744838 | AY15: 0.08301204558
B16: D | C16: 0.243 | D16: 0.246 | E16: 0.247 | F16: 0.135 | G16: 0.133 | H16: 0.13 | I16: 0.123 | J16: 0.131 | K16: 0.127 | L16: 0.173 | M16: 0.132 | N16: 0.13 | O16: Read 2:600 | P16: D | Q16: 0.203 | R16: 0.206 | S16: 0.207 | T16: 0.095 | U16: 0.093 | V16: 0.09 | W16: 0.083 | X16: 0.091 | Y16: 0.087 | Z16: 0.133 | AA16: 0.092 | AB16: 0.09 | AS16: Strain/nsAA 1 | AT16: 0.8151884793 | AU16: 0.03576137962 | AW16: Strain/nsAA 1 | AX16: 0.05249936241 | AY16: 0.00600482394
B17: E | C17: 0.121 | D17: 0.119 | E17: 0.117 | F17: 0.133 | G17: 0.133 | H17: 0.126 | I17: 0.117 | J17: 0.118 | K17: 0.12 | L17: 0.128 | M17: 0.138 | N17: 0.131 | O17: Read 2:600 | P17: E | Q17: 0.081 | R17: 0.079 | S17: 0.077 | T17: 0.093 | U17: 0.093 | V17: 0.086 | W17: 0.077 | X17: 0.078 | Y17: 0.08 | Z17: 0.088 | AA17: 0.098 | AB17: 0.091 | AS17: Strain/nsAA 2 | AT17: 0.4291894517 | AU17: 0.07865861169 | AW17: Strain/nsAA 2 | AX17: 0.00497246474 | AY17: 0.01007473341
B18: F | C18: 0.131 | D18: 0.127 | E18: 0.128 | F18: 0.136 | G18: 0.134 | H18: 0.138 | I18: 0.051 | J18: 0.072 | K18: 0.076 | L18: 0.059 | M18: 0.053 | N18: 0.053 | O18: Read 2:600 | P18: F | Q18: 0.091 | R18: 0.087 | S18: 0.088 | T18: 0.096 | U18: 0.094 | V18: 0.098 | W18: 0.011 | X18: 0.032 | Y18: 0.036 | Z18: 0.019 | AA18: 0.013 | AB18: 0.013 | AS18: Strain/nsAA 3 | AT18: 0.7769386486 | AU18: 0.05052604633 | AW18: Strain/nsAA 3 | AX18: 0.02785943296 | AY18: 0.002116853186
B19: G | C19: 0.162 | D19: 0.157 | E19: 0.162 | F19: 0.143 | G19: 0.143 | H19: 0.143 | I19: 0.165 | J19: 0.16 | K19: 0.17 | L19: 0.139 | M19: 0.133 | N19: 0.132 | O19: Read 2:600 | P19: G | Q19: 0.122 | R19: 0.117 | S19: 0.122 | T19: 0.103 | U19: 0.103 | V19: 0.103 | W19: 0.125 | X19: 0.12 | Y19: 0.13 | Z19: 0.099 | AA19: 0.093 | AB19: 0.092 | AS19: Strain/nsAA 4 | AT19: 0.05339736544 | AU19: 0.02991930808 | AW19: Strain/nsAA 4 | AX19: 0.005090984252 | AY19: 0.0009194118899
B20: H | C20: 0.131 | D20: 0.127 | E20: 0.135 | F20: 0.136 | G20: 0.134 | H20: 0.14 | I20: 0.041 | J20: 0.057 | K20: 0.041 | L20: 0.038 | M20: 0.039 | N20: 0.042 | O20: Read 2:600 | P20: H | Q20: 0.091 | R20: 0.087 | S20: 0.095 | T20: 0.096 | U20: 0.094 | V20: 0.1 | W20: 0.001 | X20: 0.017 | Y20: 0.001 | Z20: -0.002 | AA20: -0.001 | AB20: 0.002 | AS20: Strain/nsAA 5 | AT20: 0.4609280454 | AU20: 0.0462791971 | AW20: Strain/nsAA 5 | AX20: 0.01284196488 | AY20: 0.006671836738
C21: Suggested plate layout | AS21: Strain/nsAA 6 | AT21: 0.6816004396 | AU21: 0.03722464867 | AW21: Strain/nsAA 6 | AX21: 0.03700788833 | AY21: 0.002580837212
E22: Columns | K22: Data analysis: | AS22: Strain/nsAA 7 | AT22: =AVERAGE(AY3:BA3) -> 0.2554205867 | AU22: =AVERAGE(BB3:BD3) -> 0.2398740772 | AW22: Strain/nsAA 7 | AX22: =_xlfn.STDEV.P(AY3:BA3) -> 0.01392760015 | AY22: 0.01610516585
C23: Rows | E23: 1-3 | F23: 4-6 | H23: 7-9 | I23: 10-12 | K23: 1. Average technical replicates of fluorescence/luminescence data from the WT controls without nsAA. In this case WT is in wells A 1-3 and have an average fluorescence of 536.1667, represented in cell O2. | AS23: Strain/nsAA 8 | AT23: 0.05142012243 | AU23: 0.01075077539 | AW23: Strain/nsAA 8 | AX23: 0.001528294487 | AY23: 0.02052057763
C24: A | D24: WT Py79 | E24: + nsAA | F24: -nsAA | G24: Strain/nsAA 7 | H24: + nsAA | I24: -nsAA | K24: then subtract 90% of that value from the fluorescence/luminescence values of all samples. Only 90% of the value is used to avoid negative numbers. This results in background-normalized incorporation data, shown in cells P-AB:2-10 | AS24: Strain/nsAA 9 | AT24: 0.1767730807 | AU24: 0.0309636548 | AW24: Strain/nsAA 9 | AX24: 0.011601072 | AY24: 0.07283593324
C25: B | D25: TAC + ctrl | G25: Strain/nsAA 8 | K25: 2. Subtract plate reader background OD (from reading blank media wells, should be constant per given plate reader) from OD values. This can be anywhere between 0.001 - 0.04 for many plate readers. For this plate reader it is known to be | AS25: Strain/nsAA 10 | AT25: 0.02539423118 | AU25: 0.02183168843 | AW25: Strain/nsAA 10 | AX25: 0.003362922574 | AY25: 0.007914796189
C26: C | D26: Strain/nsAA 1 | G26: Strain/nsAA 9 | K26: 0.04 as seein in wells H7-H12, but you should include several blank media wells until you know this value for your plate reader. This results in normalized OD data present in cells P-AB:12-20. | AS26: Strain/nsAA 11 | AT26: 0.06930796634 | AU26: 0.03230234889 | AW26: Strain/nsAA 11 | AX26: 0.01249608838 | AY26: 0.02148558895
C27: D | D27: Strain/nsAA 2 | G27: Strain/nsAA 10 | K27: Note any especially low OD values and consider data from those wells suspect. Most nsAAs described here should not significantly hinder growth except for 5OHW which was observed to decrease final OD. | AS27: Strain/nsAA 12 | AT27: 0.2215820671 | AU27: 0.194698753 | AW27: Strain/nsAA 12 | AX27: 0.1220526037 | AY27: 0.01707173773
C28: E | D28: Strain/nsAA 3 | G28: Strain/nsAA 11 | K28: 3. Divide background-normalized incorporation data by the normalized OD data. This results in OD-normalized incorporation data. Skip this step for timecourse analysis. | AS28: Strain/nsAA 13 | AT28: 0.1630199568 | AU28: 0.06864342523 | AW28: Strain/nsAA 13 | AX28: 0.008023086615 | AY28: 0.04775060692
C29: F | D29: Strain/nsAA 4 | G29: Strain/nsAA 12 | K29: 4. Divide all averages by OD-normalized fluorescence/luminescence data from the TAC positive control lacking a TAG stop codon.
C30: G | D30: Strain/nsAA 5 | G30: Strain/nsAA 13 | K30: This results in final data as a fraction of protein expression without nsAA incorporation, and is a good way to reduce inter-experiment variation in values.
C31: H | D31: Strain/nsAA 6 | G31: Blank media | K31: 5. Use standard deviation among three biological replicates to plot error bars.
